[Event "44th Chess Olympiad Women 2022"]
[Site "Chennai"]
[Date "2022.07.29"]
[Round "1.22"]
[White "Sucikova, Svetlana"]
[Black "Dhimal, Shanti"]
[Result "1-0"]
[WhiteElo "2188"]
[BlackElo "1499"]
[Annotator "RC"]
[PlyCount "75"]
[EventDate "2022.??.??"]
[TimeControl "60"]

1. Nf3 {[%emt 0:01:12]} Nf6 {[%emt 0:00:36]} 2. g3 {[%emt 0:00:33]} d5 {
[%emt 0:00:27]} 3. Bg2 {[%emt 0:00:58]} e6 {[%emt 0:01:30]} 4. O-O {[%emt 0:00:
00]} Bd6 {[%emt 0:01:12]} 5. d4 {[%emt 0:00:35]} O-O {[%emt 0:01:03]} 6. c4 {
[%emt 0:00:43]} c5 {[%emt 0:04:04]} 7. cxd5 {[%emt 0:03:55]} Nxd5 {[%emt 0:00:
00]} 8. e4 {[%emt 0:03:38]} Nc7 {[%emt 0:03:39]} 9. dxc5 {[%emt 0:05:33]} Bxc5
{[%emt 0:00:43]} 10. Qc2 {[%emt 0:00:35]} Bb6 {[%emt 0:02:42]} 11. Bf4 {
[%emt 0:04:51]} Nc6 {[%emt 0:02:36]} 12. Rd1 {[%emt 0:02:24]} Qe8 {[%emt 0:00:
00]} 13. Bd6 {[%emt 0:03:43]} e5 {[%emt 0:04:11]} 14. Na3 {[%emt 0:03:48]} Na6
{[%emt 0:06:31]} 15. Nc4 {[%emt 0:01:58]} Bc5 {[%emt 0:04:54]} 16. Bxc5 {
[%emt 0:01:07]} Nxc5 {[%emt 0:06:16]} 17. Nd6 {[%emt 0:02:03]} Qe7 {[%emt 0:00:
00]} 18. Qxc5 {[%emt 0:01:06]} Bg4 {[%emt 0:02:52]} 19. Qa3 {[%emt 0:01:31]}
Qf6 {[%emt 0:06:55]} 20. h3 {[%emt 0:02:49]} Bh5 {[%emt 0:01:51]} 21. g4 {
[%emt 0:00:16]} Bg6 {[%emt 0:01:15]} 22. Nf5 {[%emt 0:00:26]} Rfd8 {[%emt 0:00:
00]} 23. Rac1 {[%emt 0:00:40]} h5 {[%emt 0:01:19]} 24. Rd6 {[%emt 0:01:55]}
Rxd6 {[%emt 0:01:15]} 25. Qxd6 {[%emt 0:00:21]} Qxd6 {[%emt 0:00:53]} 26. Nxd6
{[%emt 0:00:07]} Rb8 {[%emt 0:05:26]} 27. b3 {[%emt 0:02:38]} f6 {[%emt 0:00:
00]} 28. Nh4 {[%emt 0:00:54]} Kh7 {[%emt 0:02:47]} 29. Nxg6 {[%emt 0:01:27]}
Kxg6 {[%emt 0:01:11]} 30. gxh5+ {[%emt 0:00:24]} Kxh5 {[%emt 0:00:34]} 31. Bf3+
{[%emt 0:00:30]} Kg5 {[%emt 0:02:45]} 32. Kg2 {[%emt 0:01:42]} Kf4 {[%emt 0:00:
00]} 33. Nf5 {[%emt 0:04:01]} g6 {[%emt 0:02:19]} 34. Ne3 {[%emt 0:01:18]} Rd8
{[%emt 0:03:51]} 35. h4 {[%emt 0:03:42]} Nd4 {[%emt 0:06:24]} 36. Nd5+ {
[%emt 0:00:10]} Rxd5 {[%emt 0:01:28]} 37. exd5 {[%emt 0:00:07]} Nxf3 {[%emt 0:
00:00]} 38. d6 {[%emt 0:00:06]} 1-0

[Event "44th Chess Olympiad Women 2022"]
[Site "Chennai"]
[Date "2022.07.29"]
[Round "1.23"]
[White "Henderson de La Fuente, Andrea"]
[Black "Movsesian, Julia"]
[Result "0-1"]
[WhiteElo "1962"]
[BlackElo "2291"]
[Annotator "TA"]
[PlyCount "46"]
[EventDate "2022.??.??"]
[TimeControl "60"]

{[%evp 18,46,27,21,54,0,12,0,0,-7,18,19,39,11,19,10,12,21,13,0,2,-26,-25,-28,
-18,-20,-26,-325,-312,-594,-572]} 1. e4 {[%emt 0:00:03]} e5 {[%emt 0:00:08]} 2.
Nf3 {[%emt 0:00:12]} Nc6 {[%emt 0:00:10]} 3. Bb5 {[%emt 0:00:17][%cal Yf1b5,
Yb5a4,Ya4b3]} a6 {[%emt 0:00:11]} 4. Ba4 {[%emt 0:00:15]} Nf6 {[%emt 0:00:29]}
5. d3 {[%emt 0:00:14]} b5 {[%emt 0:01:29]} 6. Bb3 {[%emt 0:00:00]} Be7 {
[%emt 0:00:05]} 7. O-O {[%emt 0:01:09]} O-O {[%emt 0:00:07]} 8. Re1 {[%emt 0:
02:09]} d6 {[%emt 0:02:43]} 9. a3 {[%emt 0:06:58]} Be6 {[%emt 0:04:29]} 10. c3
{[%emt 0:17:30] [#]} Na5 $146 {[%emt 0:07:13] C90: Closed Ruy Lopez with 7...
d6: Early deviations.} ({Predecessor:} 10... Bxb3 11. Qxb3 Na5 12. Qa2 c5 13.
Bg5 Nd7 14. Be3 Qc7 15. Nbd2 c4 16. a4 Qc6 17. d4 Rfb8 18. Qa3 {0-1 (55)
Novikov,S (2556)-Safarli,E (2463) Dresden 2007}) 11. Bc2 {[%emt 0:02:01]} c5 {
[%emt 0:06:20]} 12. d4 {[%emt 0:14:08]} cxd4 {[%emt 0:09:47] The position is
equal.} 13. cxd4 {[%emt 0:00:34]} exd4 {[%emt 0:02:09]} 14. Nxd4 {[%emt 0:00:
00]} Bd7 {[%emt 0:06:30]} 15. Nc3 {[%emt 0:07:38]} Rc8 {[%emt 0:00:50]} 16. Re3
{[%emt 0:11:16]} Bg4 {[%emt 0:17:08]} 17. f3 {[%emt 0:09:00]} Bd7 {[%emt 0:00:
00]} 18. b3 {[%emt 0:00:59]} Nc6 {[%emt 0:01:31]} 19. Bb2 {[%emt 0:08:53]} Nxd4
{[%emt 0:08:46]} 20. Qxd4 {[%emt 0:00:06]} d5 {[%emt 0:00:12][%cal Yd6d5,Yd5d4]
Hoping for ...Bc5.} 21. b4 {[%emt 0:00:44] Prevents Bc5.} ({Avoid the trap} 21.
exd5 $2 Bc5 22. Qd2 Re8 $19) 21... Rc4 {[%emt 0:00:27]} 22. Qe5 {[%emt 0:10:54]
} (22. Qd3 $11 d4 23. e5 $1) 22... d4 $19 {[%emt 0:00:00]} 23. Nd5 {[%emt 0:03:
04]} (23. Bb3 dxe3 24. Bxc4 bxc4 25. Nd5) 23... Nxd5 {[%emt 0:05:49] Weighted
Error Value: White=0.85/Black=0.06 (flawless)} (23... dxe3 $2 24. Nxe7+ Kh8 {
[#]} 25. Qxf6 $1 $18) 0-1

[Event "44th Chess Olympiad Women 2022"]
[Site "Chennai"]
[Date "2022.07.29"]
[Round "1.23"]
[White "Koubova, Anna Marie"]
[Black "Galera Serra, Maria"]
[Result "1-0"]
[WhiteElo "2115"]
[BlackElo "1464"]
[Annotator "NA"]
[PlyCount "65"]
[EventDate "2022.??.??"]
[TimeControl "60"]

1. d4 {[%emt 0:00:07]} d5 {[%emt 0:00:10]} 2. c4 {[%emt 0:00:12]} c6 {[%emt 0:
00:00]} 3. Nf3 {[%emt 0:01:21]} Nf6 {[%emt 0:00:08]} 4. g3 {[%emt 0:01:46]} Bf5
{[%emt 0:04:17]} 5. Nc3 {[%emt 0:01:52]} dxc4 {[%emt 0:01:44]} 6. Bg2 {[%emt 0:
00:00]} e6 {[%emt 0:03:36]} 7. Ne5 {[%emt 0:01:55]} Be7 {[%emt 0:04:39]} 8.
Nxc4 {[%emt 0:01:54]} O-O {[%emt 0:00:56]} 9. O-O {[%emt 0:00:36]} Nbd7 {
[%emt 0:04:28]} 10. Bf4 {[%emt 0:03:10]} Nd5 {[%emt 0:19:31]} 11. Bd6 {[%emt 0:
00:00]} N7f6 {[%emt 0:10:42]} 12. Bxe7 {[%emt 0:11:21]} Nxe7 {[%emt 0:04:42]}
13. e3 {[%emt 0:11:21]} h6 {[%emt 0:04:04]} 14. Rc1 {[%emt 0:01:50]} Ned5 {
[%emt 0:07:35]} 15. Qb3 {[%emt 0:03:58]} Nxc3 {[%emt 0:04:44]} 16. bxc3 {
[%emt 0:07:10]} Rb8 {[%emt 0:00:50]} 17. Nd2 {[%emt 0:04:00]} c5 {[%emt 0:00:
00]} 18. e4 {[%emt 0:06:48]} Bg4 {[%emt 0:02:28]} 19. e5 {[%emt 0:02:41]} Nh7 {
[%emt 0:00:51]} 20. Qa4 {[%emt 0:09:13]} cxd4 {[%emt 0:04:36]} 21. cxd4 {
[%emt 0:00:31]} Be2 {[%emt 0:00:12]} 22. Rfe1 {[%emt 0:00:21]} Ba6 {[%emt 0:00:
00]} 23. Ne4 {[%emt 0:02:40]} f6 {[%emt 0:02:41]} 24. Nc5 {[%emt 0:01:46]} Qe8
{[%emt 0:02:17]} 25. Qb3 {[%emt 0:02:19]} fxe5 {[%emt 0:05:14]} 26. Nxe6 {
[%emt 0:00:54]} Rf7 {[%emt 0:01:33]} 27. Nc7 {[%emt 0:01:20]} Qd8 {[%emt 0:00:
00]} 28. Bd5 {[%emt 0:01:31]} Ng5 {[%emt 0:00:18]} 29. h4 {[%emt 0:02:00]} Nh3+
{[%emt 0:01:09]} 30. Kg2 {[%emt 0:00:36]} Kh8 {[%emt 0:01:17]} 31. Bxf7 {
[%emt 0:00:39]} Nf4+ {[%emt 0:01:17]} 32. gxf4 {[%emt 0:00:18]} Qxh4 {[%emt 0:
00:00]} 33. Nxa6 {[%emt 0:02:04]} 1-0

[Event "44th Chess Olympiad Women 2022"]
[Site "Chennai"]
[Date "2022.07.29"]
[Round "1.24"]
[White "Burbach, Anya Belle"]
[Black "Bach, Ngoc Thuy Duong"]
[Result "0-1"]
[WhiteElo "1375"]
[BlackElo "2192"]
[Annotator "RC"]
[PlyCount "48"]
[EventDate "2022.??.??"]
[TimeControl "60"]

1. e4 {[%emt 0:00:11]} c5 {[%emt 0:00:12]} 2. Nc3 {[%emt 0:02:11]} Nc6 {
[%emt 0:00:19]} 3. f4 {[%emt 0:04:29]} d6 {[%emt 0:03:38]} 4. g3 {[%emt 0:00:
00]} g6 {[%emt 0:02:31]} 5. Bg2 {[%emt 0:01:57]} Bg7 {[%emt 0:00:10]} 6. d3 {
[%emt 0:03:44]} e6 {[%emt 0:08:19]} 7. Nf3 {[%emt 0:03:50]} Nge7 {[%emt 0:00:
00]} 8. O-O {[%emt 0:01:39]} O-O {[%emt 0:00:18]} 9. Ne2 {[%emt 0:03:28]} Rb8 {
[%emt 0:13:18]} 10. c3 {[%emt 0:05:44]} b5 {[%emt 0:03:22]} 11. Be3 {[%emt 0:
00:00]} b4 {[%emt 0:02:30]} 12. Rb1 {[%emt 0:03:38]} Qa5 {[%emt 0:08:31]} 13.
Qc2 {[%emt 0:03:24]} Ba6 {[%emt 0:05:36]} 14. Nd2 {[%emt 0:06:16]} Rfd8 {
[%emt 0:07:14]} 15. f5 {[%emt 0:06:00]} exf5 {[%emt 0:02:53]} 16. exf5 {
[%emt 0:00:28]} gxf5 {[%emt 0:00:16]} 17. Bxc6 {[%emt 0:04:27]} Nxc6 {[%emt 0:
00:00]} 18. Nb3 {[%emt 0:01:59]} Qc7 {[%emt 0:08:05]} 19. Rxf5 {[%emt 0:02:12]}
Re8 {[%emt 0:00:50]} 20. Bg5 {[%emt 0:03:11]} Ne5 {[%emt 0:00:34]} 21. c4 {
[%emt 0:09:41]} Bb7 {[%emt 0:04:53]} 22. d4 {[%emt 0:09:02]} Nf3+ {[%emt 0:00:
00]} 23. Kf2 {[%emt 0:01:53]} Be4 {[%emt 0:07:11]} 24. Qd1 {[%emt 0:02:14]}
Bxf5 {[%emt 0:02:25]} 0-1

[Event "44th Chess Olympiad Women 2022"]
[Site "Chennai"]
[Date "2022.07.29"]
[Round "1.24"]
[White "Nguyen, Thi Mai Hung"]
[Black "Khantree, Napat"]
[Result "1-0"]
[WhiteElo "2223"]
[BlackElo "1362"]
[Annotator "RC"]
[PlyCount "67"]
[EventDate "2022.??.??"]
[TimeControl "60"]

1. d4 {[%emt 0:00:07]} d5 {[%emt 0:00:08]} 2. Nf3 {[%emt 0:00:25]} Nf6 {
[%emt 0:00:18]} 3. Bf4 {[%emt 0:01:52]} Bg4 {[%emt 0:00:38]} 4. c4 {[%emt 0:00:
00]} e6 {[%emt 0:05:08]} 5. Qb3 {[%emt 0:06:50]} Qc8 {[%emt 0:09:21]} 6. Nc3 {
[%emt 0:10:46]} c6 {[%emt 0:08:08]} 7. Ne5 {[%emt 0:06:03]} Bf5 {[%emt 0:05:54]
} 8. Rc1 {[%emt 0:01:59]} Nbd7 {[%emt 0:06:30]} 9. h3 {[%emt 0:02:59]} h6 {
[%emt 0:04:00]} 10. e3 {[%emt 0:11:56]} Be7 {[%emt 0:00:16]} 11. Be2 {[%emt 0:
00:00]} O-O {[%emt 0:06:17]} 12. O-O {[%emt 0:00:49]} Ne4 {[%emt 0:03:41]} 13.
Rfd1 {[%emt 0:01:32]} Bh4 {[%emt 0:02:00]} 14. cxd5 {[%emt 0:08:36]} Nxc3 {
[%emt 0:03:44]} 15. Qxc3 {[%emt 0:06:50]} exd5 {[%emt 0:06:29]} 16. b4 {
[%emt 0:04:17]} Nf6 {[%emt 0:01:42]} 17. Qb2 {[%emt 0:01:49]} Ne4 {[%emt 0:00:
00]} 18. Rf1 {[%emt 0:09:20]} Qe6 {[%emt 0:04:18]} 19. b5 {[%emt 0:01:29]} g5 {
[%emt 0:13:06]} 20. Bh2 {[%emt 0:01:45]} f6 {[%emt 0:02:29]} 21. Nf3 {[%emt 0:
00:00]} Bxh3 {[%emt 0:00:06]} 22. Nxh4 {[%emt 0:04:41]} gxh4 {[%emt 0:00:47]}
23. Bf4 {[%emt 0:02:00]} Kh8 {[%emt 0:03:45]} 24. Kh2 {[%emt 0:01:09]} Bxg2 {
[%emt 0:01:21]} 25. Kxg2 {[%emt 0:00:12]} Rg8+ {[%emt 0:00:25]} 26. Kh2 {
[%emt 0:00:11]} h3 {[%emt 0:00:19]} 27. Bf3 {[%emt 0:02:43]} Ng5 {[%emt 0:00:
00]} 28. Bh1 {[%emt 0:02:51]} Qg4 {[%emt 0:00:16]} 29. f3 {[%emt 0:00:08]} Qh4
{[%emt 0:01:33]} 30. Qf2 {[%emt 0:00:17]} Qh5 {[%emt 0:00:30]} 31. bxc6 {
[%emt 0:02:26]} bxc6 {[%emt 0:02:07]} 32. Rxc6 {[%emt 0:01:15]} Raf8 {[%emt 0:
00:00]} 33. Rg1 {[%emt 0:00:26]} Nxf3+ {[%emt 0:00:26]} 34. Bxf3 {[%emt 0:00:
00]} 1-0

[Event "44th Chess Olympiad Women 2022"]
[Site "Chennai"]
[Date "2022.07.29"]
[Round "1.24"]
[White "Prommuang, Araya"]
[Black "Hoang, Thi Bao Tram"]
[Result "1-0"]
[WhiteElo "1651"]
[BlackElo "2288"]
[Annotator "RC"]
[PlyCount "69"]
[EventDate "2022.??.??"]
[TimeControl "60"]

1. e4 {[%emt 0:00:07]} c6 {[%emt 0:00:28]} 2. Nc3 {[%emt 0:00:31]} d5 {[%emt 0:
00:00]} 3. Nf3 {[%emt 0:00:18]} Bg4 {[%emt 0:01:18]} 4. d4 {[%emt 0:00:39]} e6
{[%emt 0:01:07]} 5. Be2 {[%emt 0:00:27]} Bb4 {[%emt 0:02:20]} 6. e5 {[%emt 0:
00:00]} Bxf3 {[%emt 0:08:19]} 7. Bxf3 {[%emt 0:02:13]} c5 {[%emt 0:02:57]} 8.
O-O {[%emt 0:04:11]} Nc6 {[%emt 0:08:44]} 9. a3 {[%emt 0:05:04]} Bxc3 {[%emt 0:
00:00]} 10. bxc3 {[%emt 0:00:43]} Nge7 {[%emt 0:00:21]} 11. Bb2 {[%emt 0:15:12]
} O-O {[%emt 0:07:44]} 12. g3 {[%emt 0:06:26]} Rc8 {[%emt 0:04:26]} 13. Bg2 {
[%emt 0:05:08]} Na5 {[%emt 0:04:26]} 14. f4 {[%emt 0:10:50]} Nc4 {[%emt 0:00:
00]} 15. Bc1 {[%emt 0:00:49]} Qb6 {[%emt 0:01:48]} 16. Qd3 {[%emt 0:08:26]} Rc7
{[%emt 0:03:20]} 17. g4 {[%emt 0:03:22]} Rfc8 {[%emt 0:01:21]} 18. dxc5 {
[%emt 0:05:10]} Qxc5+ {[%emt 0:02:54]} 19. Kh1 {[%emt 0:00:36]} Ng6 {[%emt 0:
00:00]} 20. Qg3 {[%emt 0:01:41]} Rd7 {[%emt 0:08:32]} 21. h4 {[%emt 0:03:00]}
Nb6 {[%emt 0:10:37]} 22. f5 {[%emt 0:03:41]} Nf8 {[%emt 0:01:16]} 23. Bd2 {
[%emt 0:01:42]} d4 {[%emt 0:02:14]} 24. cxd4 {[%emt 0:02:15]} Qxd4 {[%emt 0:00:
00]} 25. Bb4 {[%emt 0:00:39]} exf5 {[%emt 0:07:35]} 26. gxf5 {[%emt 0:01:57]}
Rc4 {[%emt 0:00:46]} 27. e6 {[%emt 0:01:26]} Rxb4 {[%emt 0:04:25]} 28. axb4 {
[%emt 0:00:41]} fxe6 {[%emt 0:00:46]} 29. fxe6 {[%emt 0:01:05]} Nxe6 {[%emt 0:
00:00]} 30. Rae1 {[%emt 0:00:46]} Nf8 {[%emt 0:00:55]} 31. Rf4 {[%emt 0:04:37]}
Qd2 {[%emt 0:01:29]} 32. Qb3+ {[%emt 0:02:03]} Nd5 {[%emt 0:00:42]} 33. Bxd5+ {
[%emt 0:00:36]} Rxd5 {[%emt 0:00:10]} 34. Ref1 {[%emt 0:00:33]} Ne6 {[%emt 0:
00:00]} 35. Rf5 {[%emt 0:00:42]} 1-0

[Event "44th Chess Olympiad Women 2022"]
[Site "Chennai"]
[Date "2022.07.29"]
[Round "1.24"]
[White "Vo, Thi Kim Phung"]
[Black "Chuemsakul, Sarocha"]
[Result "1-0"]
[WhiteElo "2333"]
[BlackElo "1684"]
[Annotator "TA"]
[PlyCount "83"]
[EventDate "2022.??.??"]
[TimeControl "60"]

{[%evp 24,83,108,114,112,89,119,101,106,80,80,77,74,73,81,74,75,75,87,87,102,
82,93,101,102,77,77,62,100,96,136,135,159,152,150,154,159,158,163,118,155,99,
354,366,362,337,356,364,356,345,387,368,538,529,666,668,664,656,833,826,980,
959]} 1. d4 {[%emt 0:00:05]} Nf6 {[%emt 0:00:11]} 2. c4 {[%emt 0:00:08]} e6 {
[%emt 0:00:15]} 3. Nc3 {[%emt 0:00:08]} d5 {[%emt 0:00:21]} 4. Bg5 {[%emt 0:00:
00]} Be7 {[%emt 0:00:17]} 5. e3 {[%emt 0:00:09]} Nbd7 {[%emt 0:01:48]} 6. Nf3 {
[%emt 0:00:24]} O-O {[%emt 0:00:53]} 7. Qc2 {[%emt 0:01:34]} Re8 {[%emt 0:00:
00]} 8. cxd5 {[%emt 0:00:21]} exd5 {[%emt 0:01:14]} 9. Bd3 {[%emt 0:00:19]} c6
{[%emt 0:01:58]} 10. O-O {[%emt 0:00:22]} h6 {[%emt 0:03:43]} 11. Bf4 {[%emt 0:
00:00]} Nh5 {[%emt 0:03:29]} 12. Nxd5 {[%emt 0:00:42][%cal Yc3d5,Yd5f4,Yf4h5]}
Nxf4 {[%emt 0:00:41]} 13. Nxf4 {[%emt 0:00:50]} Bd6 {[%emt 0:02:32] [#] D36:
Queen's Gambit Declined: Exchange Variation: Main line (5 Bg5 c6 6 Qc2).} 14.
Rfd1 $146 {[%emt 0:02:28]} ({Predecessor:} 14. Ne2 Nf8 15. Bf5 Qf6 16. Bxc8
Raxc8 17. Ng3 g6 18. Rac1 Bb8 19. Ne4 Qe7 20. Nc5 h5 21. Qb3 b6 22. Nd3 Nd7 {
1-0 (33) Eynullayev,A (2325)-Hayrapetyan,H (2500) Chess.com INT 2021}) 14...
Qc7 {[%emt 0:07:24]} 15. Nh5 {[%emt 0:01:33] 0x0.00207caa9430dp-1022s more
active pieces.} Nb6 {[%emt 0:01:58] White is better.} 16. e4 {[%emt 0:00:00]}
Bg4 {[%emt 0:04:31]} 17. Ng3 {[%emt 0:00:10]} Bf4 {[%emt 0:02:43]} 18. Be2 {
[%emt 0:01:48]} Qe7 {[%emt 0:10:38]} 19. e5 {[%emt 0:04:20]} Bxg3 {[%emt 0:00:
00]} 20. hxg3 {[%emt 0:00:41]} Nd5 {[%emt 0:00:41]} 21. Nh4 {[%emt 0:02:01]}
Bxe2 {[%emt 0:10:03]} 22. Qxe2 {[%emt 0:00:15]} g6 {[%emt 0:00:05]} 23. Rac1 {
[%emt 0:00:44]} Kg7 {[%emt 0:02:58]} 24. Qd3 {[%emt 0:01:40]} Rad8 {[%emt 0:00:
00]} 25. a3 {[%emt 0:00:26]} a5 {[%emt 0:05:53]} 26. Qb3 {[%emt 0:01:16]} Ra8 {
[%emt 0:01:22]} 27. Nf3 {[%emt 0:00:14][%cal Yh4f3,Yf3d2,Yd2e4,Ye4c3]} Rec8 {
[%emt 0:02:54]} 28. Nd2 {[%emt 0:00:22]} a4 {[%emt 0:03:12]} 29. Qf3 {[%emt 0:
00:48]} h5 {[%emt 0:02:28]} 30. Ne4 {[%emt 0:02:42]} Rh8 {[%emt 0:00:00]} 31.
Nc3 {[%emt 0:01:59]} Nb6 {[%emt 0:10:38]} 32. d5 {[%emt 0:07:28]} (32. Rd3 $142
) 32... Nc4 $2 {[%emt 0:02:26] [#] Black cannot hold the game after this.} (
32... Rhc8 $16) 33. Qf6+ $18 {[%emt 0:00:11]} (33. dxc6 Nxe5 34. Qe4 Nxc6 $16)
33... Qxf6 {[%emt 0:00:29]} 34. exf6+ {[%emt 0:00:06]} Kh6 {[%emt 0:00:56]} 35.
dxc6 {[%emt 0:00:11]} bxc6 {[%emt 0:00:28]} 36. Ne4 {[%emt 0:00:44]} Ne5 {
[%emt 0:00:37]} 37. Rc5 {[%emt 0:01:03]} Ng4 {[%emt 0:00:00]} (37... Rhe8 {
keeps fighting.} 38. Nd6 Rad8) 38. f3 {[%emt 0:02:01] White is clearly winning.
} Ne3 {[%emt 0:00:28]} 39. Rd3 {[%emt 0:00:22]} Nd5 {[%emt 0:00:32]} 40. Rxc6 {
[%emt 0:00:17]} Rhd8 {[%emt 0:00:15]} 41. Nd6 {[%emt 0:30:17]} Rd7 {[%emt 0:30:
46]} 42. Rxd5 {[%emt 0:00:13] Weighted Error Value: White=0.06 (flawless) /
Black=0.40} 1-0

[Event "44th Chess Olympiad Women 2022"]
[Site "Chennai"]
[Date "2022.07.29"]
[Round "1.25"]
[White "Gueci, Tea"]
[Black "Kaslan, Victoria"]
[Result "1-0"]
[WhiteElo "2254"]
[BlackElo "1477"]
[Annotator "ChessBase"]
[PlyCount "67"]
[EventDate "2022.??.??"]
[TimeControl "60"]

1. e4 {[%emt 0:00:05]} c5 {[%emt 0:00:18]} 2. Nf3 {[%emt 0:00:06]} d6 {[%emt 0:
00:00]} 3. Bb5+ {[%emt 0:00:06]} Nd7 {[%emt 0:00:48]} 4. d4 {[%emt 0:00:14]}
cxd4 {[%emt 0:00:56]} 5. Qxd4 {[%emt 0:01:43]} a6 {[%emt 0:01:16]} 6. Bxd7+ {
[%emt 0:00:33]} Bxd7 {[%emt 0:00:40]} 7. c4 {[%emt 0:02:22]} e5 {[%emt 0:06:48]
} 8. Qd3 {[%emt 0:00:32]} Nf6 {[%emt 0:00:17]} 9. O-O {[%emt 0:01:52]} Be7 {
[%emt 0:00:45]} 10. Bg5 {[%emt 0:03:05]} Bc6 {[%emt 0:07:07]} 11. Nc3 {[%emt 0:
00:00]} Qc7 {[%emt 0:04:40]} 12. Rfd1 {[%emt 0:02:52]} Rd8 {[%emt 0:03:32]} 13.
Rac1 {[%emt 0:02:37]} O-O {[%emt 0:07:16]} 14. b4 {[%emt 0:03:01]} b6 {[%emt 0:
00:00]} 15. b5 {[%emt 0:03:53]} Bb7 {[%emt 0:08:52]} 16. Bxf6 {[%emt 0:04:11]}
Bxf6 {[%emt 0:00:31]} 17. bxa6 {[%emt 0:02:24]} Ba8 {[%emt 0:07:47]} 18. Nd5 {
[%emt 0:05:05]} Bxd5 {[%emt 0:04:27]} 19. cxd5 {[%emt 0:00:24]} Qa7 {[%emt 0:
00:00]} 20. Rc6 {[%emt 0:02:10]} Rd7 {[%emt 0:01:59]} 21. Rb1 {[%emt 0:06:59]}
Rb8 {[%emt 0:01:59]} 22. Nd2 {[%emt 0:06:38]} Bd8 {[%emt 0:02:54]} 23. Qb5 {
[%emt 0:03:53]} h6 {[%emt 0:08:37]} 24. Nc4 {[%emt 0:01:38]} Bc7 {[%emt 0:00:
00]} 25. a4 {[%emt 0:00:58]} Kh7 {[%emt 0:06:21]} 26. Nxb6 {[%emt 0:02:20]} Re7
{[%emt 0:01:41]} 27. a5 {[%emt 0:00:45]} g6 {[%emt 0:00:38]} 28. Qd3 {[%emt 0:
00:00]} Ree8 {[%emt 0:02:12]} 29. h4 {[%emt 0:03:33]} Kg7 {[%emt 0:00:41]} 30.
Rb3 {[%emt 0:01:42]} Kg8 {[%emt 0:00:48]} 31. Nd7 {[%emt 0:01:07]} Rxb3 {
[%emt 0:00:24]} 32. Qxb3 {[%emt 0:01:00]} Bd8 {[%emt 0:00:46]} 33. Rxd6 {
[%emt 0:02:35]} Bxh4 {[%emt 0:00:34]} 34. Qb6 {[%emt 0:01:43]} 1-0

[Event "44th Chess Olympiad Women 2022"]
[Site "Chennai"]
[Date "2022.07.29"]
[Round "1.25"]
[White "Kaslan, Catherine"]
[Black "Brunello, Marina"]
[Result "0-1"]
[WhiteElo "1872"]
[BlackElo "2341"]
[Annotator "ChessBase"]
[PlyCount "86"]
[EventDate "2022.??.??"]
[TimeControl "60"]

1. e4 {[%emt 0:00:14]} c5 {[%emt 0:00:09]} 2. Nf3 {[%emt 0:00:19]} d6 {[%emt 0:
00:00]} 3. d4 {[%emt 0:00:39]} cxd4 {[%emt 0:00:16]} 4. Nxd4 {[%emt 0:00:13]}
Nf6 {[%emt 0:00:05]} 5. Nc3 {[%emt 0:00:48]} a6 {[%emt 0:00:05]} 6. Be3 {
[%emt 0:00:35]} e5 {[%emt 0:00:19]} 7. Nb3 {[%emt 0:00:48]} Be6 {[%emt 0:00:14]
} 8. f3 {[%emt 0:03:21]} h5 {[%emt 0:00:18]} 9. Qd2 {[%emt 0:04:43]} Nbd7 {
[%emt 0:00:46]} 10. Nd5 {[%emt 0:02:15]} Bxd5 {[%emt 0:00:39]} 11. exd5 {
[%emt 0:00:16]} g6 {[%emt 0:09:30]} 12. c4 {[%emt 0:08:44]} b6 {[%emt 0:00:00]}
13. Bd3 {[%emt 0:02:54]} Bg7 {[%emt 0:00:00]} 14. O-O {[%emt 0:04:13]} a5 {
[%emt 0:00:00]} 15. Rae1 {[%emt 0:11:45]} O-O {[%emt 0:00:00]} 16. Bg5 {
[%emt 0:09:55]} Qc7 {[%emt 0:03:01]} 17. Nc1 {[%emt 0:09:31]} Rae8 {[%emt 0:00:
00]} 18. Ne2 {[%emt 0:20:10]} e4 {[%emt 0:08:06]} 19. fxe4 {[%emt 0:00:31]}
Nxe4 {[%emt 0:00:23]} 20. Bxe4 {[%emt 0:00:46]} Rxe4 {[%emt 0:00:14]} 21. b3 {
[%emt 0:00:43]} Ree8 {[%emt 0:30:30]} 22. Nc3 {[%emt 0:03:40]} Nc5 {[%emt 0:00:
00]} 23. Bf6 {[%emt 0:03:28]} Rxe1 {[%emt 0:03:23]} 24. Qxe1 {[%emt 0:02:21]}
Qd7 {[%emt 0:00:24]} 25. Bxg7 {[%emt 0:01:01]} Kxg7 {[%emt 0:00:05]} 26. Rf3 {
[%emt 0:00:26]} Re8 {[%emt 0:02:22]} 27. Re3 {[%emt 0:01:06]} Rxe3 {[%emt 0:00:
00]} 28. Qxe3 {[%emt 0:00:04]} Qf5 {[%emt 0:00:30]} 29. Qd4+ {[%emt 0:02:21]}
Kh7 {[%emt 0:07:29]} 30. Qf2 {[%emt 0:00:32]} Qd7 {[%emt 0:03:10]} 31. Qf6 {
[%emt 0:01:19]} Kg8 {[%emt 0:00:24]} 32. Nb5 {[%emt 0:01:28]} Ne4 {[%emt 0:00:
00]} 33. Qd4 {[%emt 0:00:45]} Qg4 {[%emt 0:02:53]} 34. h3 {[%emt 0:02:36]} Qf4
{[%emt 0:00:31]} 35. Nxd6 {[%emt 0:00:40]} Qc1+ {[%emt 0:00:37]} 36. Kh2 {
[%emt 0:00:06]} Nxd6 {[%emt 0:01:20]} 37. Qxb6 {[%emt 0:00:15]} Qf4+ {[%emt 0:
00:00]} 38. Kg1 {[%emt 0:00:34]} Nf5 {[%emt 0:06:06]} 39. Qd8+ {[%emt 0:01:47]}
Kg7 {[%emt 0:00:23]} 40. Qxa5 {[%emt 0:01:54]} Qe3+ {[%emt 0:02:31]} 41. Kh2 {
[%emt 0:30:24]} h4 {[%emt 0:30:16]} 42. Qc7 {[%emt 0:00:48]} Ng3 {[%emt 0:00:
00]} 43. Qd6 {[%emt 0:00:30]} Qe1 {[%emt 0:00:37]} 0-1